bitfinex/quotes_ETHUSD_20240925
["timestamp","ask_amount","ask_price","bid_price","bid_amount"]
[1727269698785,7.54047085,2625.6,2625.5,0.819]
[1727269700213,0.08047085,2625.6,2625.5,0.819]
[1727269700522,3.80838,2625.8,2625.5,0.819]
[1727269700718,0.08047085,2625.6,2625.5,0.819]
[1727269700927,3.80823,2625.9,2625.5,0.819]
[1727269701126,0.08047085,2625.6,2625.5,4.62778]
[1727269701310,3.84608,2626.0,2625.5,4.62778]
[1727269701688,0.08067473,2625.9,2625.5,4.62778]
[1727269701909,0.08067473,2625.9,2625.5,5.471451]
[1727269703193,0.08067473,2625.9,2625.6,3.80863]
[1727269707220,0.08067473,2625.9,2625.5,4.62778]
[1727269707721,0.08067473,2625.9,2625.6,3.80858]
[1727269708533,0.08067473,2625.9,2625.8,0.8279]
[1727269709381,0.08067473,2625.9,2625.6,4.63653]
[1727269709626,0.89167473,2625.9,2625.4,0.8279]
[1727269709821,4.69996473,2625.9,2625.4,4.63673]
[1727269710022,4.69996473,2625.9,2625.5,3.80879]
[1727269711725,0.89167473,2625.9,2625.5,7.61751]
[1727269711886,0.89167473,2625.9,2625.5,8.462051]
[1727269713927,0.89167473,2625.9,2625.5,4.653261]
[1727269714103,0.89167473,2625.9,2625.5,8.461971]
[1727269715147,0.08067473,2625.9,2625.5,8.461971]
[1727269715512,0.08067473,2625.9,2625.6,3.80865]
[1727269721269,3.88892473,2625.9,2625.5,3.80878]
[1727269721437,3.88892473,2625.9,2625.4,8.44567]
[1727269721845,3.88892473,2625.9,2625.4,4.63675]
[1727269722055,3.88892473,2625.9,2625.5,3.80877]
[1727269723562,0.08067473,2625.9,2625.5,3.80877]
[1727269724940,0.08067473,2625.9,2625.6,3.80864]
[1727269727776,3.88891473,2625.9,2625.4,4.63675]
[1727269727933,3.88891473,2625.9,2625.4,8.44561]
[1727269728694,0.8323,2625.8,2625.4,8.44561]
[1727269728871,0.91201761,2625.8,2625.4,8.44561]
[1727269729066,0.91201761,2625.8,2625.4,4.63675]
[1727269729981,0.91201761,2625.8,2625.4,8.44562]
[1727269730181,0.91201761,2625.8,2625.5,3.80877]
[1727269738561,0.91201761,2625.8,2625.6,0.39890327]
[1727269738778,0.91201761,2625.8,2625.5,3.80877]
[1727269742167,0.91201761,2625.8,2625.6,3.80863]
[1727269742381,0.07971761,2625.8,2625.6,3.80863]
[1727269742597,0.07971761,2625.8,2625.5,3.80879]
[1727269743273,0.07971761,2625.8,2625.4,4.63682]
[1727269743609,3.80875,2625.6,2625.2,3.83327437]
[1727269743905,0.07950748,2625.5,2625.2,3.83327437]
[1727269744672,3.88832748,2625.5,2625.2,0.02415437]
[1727269744973,4.62028,2625.3,2625.2,0.02415437]
[1727269745476,0.8906508,2625.3,2625.2,0.02415437]
[1727269746021,0.0794508,2625.3,2625.2,0.02415437]
[1727269746308,10.03027179,2625.5,2625.2,0.02415437]
[1727269746515,0.07933151,2625.3,2625.2,0.02415437]
[1727269746806,10.03027179,2625.5,2625.2,0.02415437]
[1727269747122,4.58788,2625.3,2625.2,0.02415437]
[1727269747275,6.31108805,2625.3,2625.2,0.02415437]
[1727269748506,4.71973626,2625.3,2625.2,0.02415437]
[1727269751602,6.31108805,2625.3,2625.2,0.02415437]
[1727269752486,9.71482049,2625.3,2625.2,0.02415437]
[1727269752686,8.06765015,2625.3,2625.2,0.02415437]
[1727269752889,10.46175123,2625.3,2625.2,0.02415437]
[1727269753434,9.37375677,2625.3,2625.2,0.02415437]
[1727269754115,12.16534508,2625.3,2625.2,0.02415437]
[1727269754493,9.771244,2625.3,2625.2,0.02415437]
[1727269755359,9.771244,2625.3,2624.1,4.6755384]
[1727269755360,0.8006,2625.1,2624.1,0.0383884]
[1727269755738,8.91738662,2624.2,2624.1,0.0383884]
[1727269756135,5.99559209,2624.2,2624.1,0.0383884]
[1727269756299,7.5766452,2624.2,2624.1,0.0383884]
[1727269757124,10.5766452,2624.2,2624.1,0.0383884]
[1727269757345,12.51601065,2624.2,2624.1,0.0383884]
[1727269757545,10.92455909,2624.2,2624.1,0.0383884]
[1727269757895,12.51601065,2624.2,2624.1,0.0383884]
[1727269758095,12.91392457,2624.2,2624.1,0.0383884]
[1727269758306,11.32247301,2624.2,2624.1,0.0383884]
[1727269765552,8.48784291,2624.2,2624.1,0.0383884]
[1727269767045,4.28679939,2624.2,2624.1,0.0383884]
[1727269767295,4.33932902,2624.2,2624.1,0.0383884]
[1727269767452,3.9414151,2624.2,2624.1,0.0383884]
[1727269770400,0.07820547,2624.2,2624.1,0.0383884]
[1727269770570,0.07820547,2624.2,2624.1,0.8601884]
[1727269770897,3.81017,2624.6,2624.1,0.8601884]
[1727269770898,3.81046,2624.4,2624.1,0.8601884]
[1727269771199,0.07500712,2624.2,2624.1,1.32730824]
[1727269771399,3.81046,2624.4,2624.1,1.32730824]
[1727269771598,0.0749899,2624.2,2624.1,1.32730824]
[1727269771796,3.81046,2624.4,2624.1,1.32730824]
[1727269772008,0.0749899,2624.2,2624.1,1.32730824]
[1727269772296,3.81046,2624.4,2624.1,1.32730824]
[1727269772506,0.0749899,2624.2,2624.1,1.32730824]
[1727269772884,3.81046,2624.4,2624.1,1.32730824]
[1727269773075,0.0749899,2624.2,2624.1,1.32730824]
[1727269774010,0.07515787,2624.2,2624.1,1.32730824]
[1727269774215,3.81046,2624.4,2624.1,1.32730824]
[1727269774373,0.07515787,2624.2,2624.1,1.32730824]
[1727269774574,3.81046,2624.4,2624.1,1.32730824]
[1727269775219,0.07513471,2624.3,2624.2,0.51382582]
[1727269775878,0.07509801,2624.3,2624.1,1.32730824]
[1727269776270,3.81026,2624.5,2624.1,1.32730824]
[1727269776483,0.07506836,2624.2,2624.1,1.32730824]
[1727269776671,3.81026,2624.5,2624.1,1.32730824]
[1727269776902,0.07506836,2624.2,2624.1,1.32730824]
[1727269777079,3.81026,2624.5,2624.1,1.32730824]
[1727269777280,3.86263963,2624.6,2624.1,5.13813824]
[1727269777523,3.81006,2624.7,2624.2,3.81057]
[1727269777721,0.07528211,2624.5,2624.3,3.81052]
[1727269777892,0.07532398,2624.6,2624.3,3.81052]
[1727269778216,3.81006,2624.7,2624.3,3.81052]
[1727269778217,3.81006,2624.7,2624.3,4.65717384]
[1727269778437,0.07532847,2624.5,2624.3,0.84665384]
[1727269778740,0.07529882,2624.4,2624.3,0.84665384]
[1727269779384,3.81012,2624.6,2624.3,0.84665384]
[1727269779581,0.07532847,2624.5,2624.3,0.84665384]
[1727269789404,0.07532847,2624.5,2624.2,0.8068]
[1727269789405,3.88559847,2624.5,2624.2,0.8068]
[1727269790167,0.07532847,2624.5,2624.2,0.8068]
[1727269794712,3.81055,2624.3,2624.1,0.0383884]
[1727269794928,5.08056738,2624.2,2624.1,0.0383884]
[1727269795083,5.15556576,2624.2,2624.1,0.0383884]
[1727269795287,6.51541919,2624.2,2624.1,0.0383884]
[1727269799817,6.44042081,2624.2,2624.1,0.0383884]
[1727269800488,6.51504702,2624.2,2624.1,0.0383884]
[1727269806465,8.10649858,2624.2,2624.1,0.0383884]
[1727269806665,8.05396895,2624.2,2624.1,0.0383884]
[1727269811160,6.74664515,2624.2,2624.1,0.0383884]
[1727269811394,3.93783584,2624.2,2624.1,0.0383884]
[1727269811757,3.88530621,2624.2,2624.1,0.0383884]
[1727269812257,0.07462621,2624.2,2624.1,0.0383884]
[1727269812594,3.81055,2624.3,2624.1,0.0383884]
[1727269812906,3.81053,2624.3,2624.1,0.0383884]
[1727269813060,3.8104,2624.4,2624.1,0.0383884]
[1727269813255,3.81068,2624.2,2624.1,0.0383884]
[1727269815411,3.88000414,2624.2,2624.1,0.0383884]
[1727269819451,0.06932414,2624.2,2624.1,0.0383884]
[1727269819812,3.81055,2624.3,2624.1,0.0383884]
[1727269820008,0.06932414,2624.2,2624.1,0.0383884]
[1727269820318,3.81055,2624.3,2624.2,0.8239]
[1727269820527,3.81016,2624.6,2624.2,0.8239]
[1727269820925,3.81016,2624.6,2624.2,1.42574322]
[1727269821130,3.81016,2624.6,2624.2,0.8239]
[1727269821311,3.8105,2624.4,2624.2,0.8239]
[1727269823518,0.06925337,2624.3,2624.2,0.8239]
[1727269824914,3.8104,2624.4,2624.2,0.8239]
[1727269825255,0.06925337,2624.3,2624.2,0.8239]
[1727269825612,7.62063,2624.5,2624.2,0.8239]
[1727269825812,0.06928302,2624.4,2624.2,0.8239]
[1727269826530,3.87969302,2624.4,2624.2,0.8239]
[1727269826864,0.06928302,2624.4,2624.2,0.8239]
[1727269829269,3.81006,2624.7,2624.3,0.7993]
[1727269829477,3.80982,2624.8,2624.4,0.7993]
[1727269830265,3.80975,2624.9,2624.4,0.7993]
[1727269830569,5.40092156,2625.1,2624.6,4.60939]
[1727269830767,1.59145156,2625.2,2624.7,3.80995]
[1727269830934,5.80037077,2625.3,2624.7,3.80995]
[1727269830935,3.80917,2625.3,2624.8,0.7993]
[1727269831138,0.06954146,2625.1,2624.8,0.7993]
[1727269831347,3.87891497,2625.2,2624.8,0.7993]
[1727269831649,3.80931,2625.2,2624.8,4.6091]
[1727269831849,0.11025272,2625.1,2624.8,5.53081587]
[1727269832656,0.11025272,2625.1,2624.8,9.34055587]
[1727269832870,0.11025272,2625.1,2624.8,5.53075587]
[1727269833037,3.80894,2625.4,2624.8,5.53073587]
[1727269833362,0.11045969,2625.3,2624.9,3.80962]
[1727269834373,0.11045969,2625.3,2624.9,4.74365559]
[1727269834567,0.11045969,2625.3,2625.0,3.8095]
[1727269834887,3.80861,2625.7,2625.2,3.80923]
[1727269835097,3.80861,2625.7,2625.3,0.8017]
[1727269835644,7.61721,2625.7,2625.3,0.8017]
[1727269835851,3.8086,2625.7,2625.3,0.8017]
[1727269836584,3.80866,2625.6,2625.3,0.8017]
[1727269837861,0.1107194,2625.5,2625.3,0.8017]
[1727269840275,7.6172,2625.7,2625.3,0.8017]
[1727269840451,0.11069132,2625.4,2625.3,0.8017]
[1727269840651,3.80865,2625.6,2625.3,0.8017]
[1727269840652,3.80865,2625.6,2625.3,1.643722]
[1727269840894,0.1107194,2625.5,2625.3,0.8017]
[1727269842606,3.80894,2625.4,2625.1,0.8208]
[1727269842805,0.11066323,2625.3,2625.1,0.8208]
[1727269843004,3.80887,2625.5,2625.1,1.664787]
[1727269843225,0.11069132,2625.4,2625.1,1.664787]
[1727269843709,3.91972132,2625.4,2625.1,0.8208]
[1727269844012,3.80916,2625.3,2624.9,0.8164]
[1727269844222,3.92006027,2625.2,2624.9,0.8164]
[1727269844840,3.80941,2625.1,2624.9,0.8164]
[1727269844999,3.80941,2625.1,2624.8,7.4]
[1727269845000,3.92028567,2625.0,2624.8,7.4]
[1727269845938,3.80966,2624.9,2624.8,7.4]
[1727269846218,3.9728157,2624.9,2624.8,7.4]
[1727269847287,3.9728157,2624.9,2624.4,0.805]
[1727269847288,3.8099,2624.8,2624.4,0.805]
[1727269847690,0.11067735,2624.7,2624.4,0.805]
[1727269848178,0.11064925,2624.6,2624.4,0.805]
[1727269848388,3.8099,2624.8,2624.4,1.266543]
[1727269848797,0.11067735,2624.7,2624.4,1.266543]
[1727269848976,3.8099,2624.8,2624.4,1.266543]
[1727269849180,0.11067735,2624.7,2624.4,1.266543]
[1727269849519,3.80989,2624.8,2624.4,0.805]
[1727269849706,0.11064925,2624.6,2624.4,0.805]
[1727269849908,3.80989,2624.8,2624.4,0.805]
[1727269850109,0.11062114,2624.5,2624.4,0.805]
[1727269850308,3.80989,2624.8,2624.4,0.805]
[1727269850521,0.11036414,2624.5,2624.4,0.805]
[1727269850709,3.80989,2624.8,2624.4,0.805]
[1727269850881,0.11036414,2624.5,2624.4,0.805]
[1727269851082,3.80989,2624.8,2624.4,0.805]
[1727269851312,0.11036414,2624.5,2624.4,0.805]
[1727269851616,0.11033341,2624.5,2624.4,1.647588]
[1727269851822,3.80989,2624.8,2624.4,1.647588]
[1727269851979,3.80989,2624.8,2624.4,0.805]
[1727269851980,0.11038963,2624.7,2624.4,0.805]
[1727269852181,3.80989,2624.8,2624.4,0.805]
[1727269852381,0.11038963,2624.7,2624.4,0.805]
[1727269852684,3.80989,2624.8,2624.4,0.805]
[1727269852894,0.11036152,2624.6,2624.4,0.805]
[1727269853122,3.80989,2624.8,2624.4,0.805]
[1727269853291,0.11033341,2624.5,2624.4,0.805]
[1727269853493,3.80989,2624.8,2624.4,0.805]
[1727269853694,0.11033341,2624.5,2624.4,0.805]
[1727269853906,3.80989,2624.8,2624.4,0.805]
[1727269854385,0.11038963,2624.7,2624.4,0.805]
[1727269854584,3.80989,2624.8,2624.4,0.805]
[1727269854779,0.11038963,2624.7,2624.4,4.61536]
[1727269855023,3.80989,2624.8,2624.4,4.61536]
[1727269855228,0.11029137,2624.7,2624.4,4.61536]
[1727269855524,3.80989,2624.8,2624.4,4.61536]
[1727269855731,0.11026326,2624.6,2624.4,4.61536]
[1727269855901,3.80989,2624.8,2624.4,4.61536]
[1727269856103,0.11023515,2624.5,2624.4,4.61536]
[1727269856305,3.80989,2624.8,2624.4,4.61536]
[1727269856493,0.11023515,2624.5,2624.4,4.61536]
[1727269856694,3.80989,2624.8,2624.4,5.457939]
[1727269856923,0.11023515,2624.5,2624.4,4.61536]
[1727269857120,3.80989,2624.8,2624.4,4.61536]
[1727269857302,0.11023515,2624.5,2624.4,4.61536]
[1727269857830,3.80989,2624.8,2624.4,4.61536]
[1727269858031,0.11029137,2624.7,2624.4,4.61536]
[1727269858330,3.80989,2624.8,2624.4,5.457939]
[1727269858493,0.11026326,2624.6,2624.4,5.457939]
[1727269858705,3.80989,2624.8,2624.4,5.457939]
[1727269858906,0.11023515,2624.5,2624.4,5.457939]
[1727269859117,3.80989,2624.8,2624.4,5.457939]
[1727269859321,0.11052289,2624.5,2624.4,5.457939]
[1727269859523,3.80989,2624.8,2624.4,5.457939]
[1727269860049,0.11050646,2624.7,2624.4,5.457939]
[1727269860220,3.80962,2625.0,2624.4,5.457939]
[1727269860545,0.11056265,2624.9,2624.6,0.8326]
[1727269860751,0.11056265,2624.9,2624.7,3.80994]
[1727269860953,3.80944,2625.1,2624.7,3.80994]
[1727269861158,3.80944,2625.1,2624.7,4.65521]
[1727269861159,0.11055164,2624.8,2624.7,4.65521]
[1727269861454,0.11059864,2624.8,2624.6,0.8326]
[1727269861615,3.80958,2625.0,2624.6,4.64266]
[1727269861822,0.11062674,2624.9,2624.6,4.64266]
[1727269863139,3.92031674,2624.9,2624.6,0.8326]
[1727269864255,3.80998,2624.7,2624.3,0.7721]
[1727269864404,3.9732948,2624.6,2624.3,0.7721]
[1727269864604,0.11058517,2624.6,2624.3,0.7721]
[1727269864802,0.11058517,2624.6,2624.3,1.97420884]
[1727269865036,0.11058517,2624.6,2624.3,5.78466884]
[1727269865239,3.86244963,2624.8,2624.3,5.78466884]
[1727269865442,0.11060473,2624.7,2624.3,5.78466884]
[1727269865613,7.67233963,2624.8,2624.3,5.78466884]
[1727269865815,3.92056473,2624.7,2624.3,5.78466884]
[1727269867452,3.92056473,2624.7,2624.4,0.95952688]
[1727269868135,3.92056473,2624.7,2624.3,5.78466884]
[1727269869471,7.73062473,2624.7,2624.3,0.7721]
[1727269869670,3.92056473,2624.7,2624.3,0.7721]
[1727269874099,3.81018,2624.6,2624.3,0.7721]
[1727269874253,3.81028,2624.5,2624.3,0.7721]
[1727269874449,0.10871853,2624.5,2624.3,0.7721]
[1727269877821,3.91896853,2624.5,2624.3,0.7721]
[1727269878604,1.71157235,2624.5,2624.1,0.0383884]
[1727269878821,3.81065,2624.3,2624.1,0.0383884]
[1727269879122,3.9187682,2624.4,2624.1,0.0383884]
[1727269879420,3.8104,2624.4,2624.1,0.0383884]
[1727269879585,0.10834009,2624.3,2624.1,0.0383884]
[1727269881590,3.91890009,2624.3,2624.1,0.0383884]
[1727269886214,4.71170009,2624.3,2624.1,0.0383884]
[1727269886421,5.17043548,2624.2,2624.1,0.0383884]
[1727269886589,9.07148087,2624.2,2624.1,0.0383884]
[1727269886897,11.59532545,2624.2,2624.1,0.0383884]
[1727269887103,9.41627978,2624.2,2624.1,0.0383884]
[1727269887607,11.80477009,2624.2,2624.1,0.0383884]
[1727269887800,12.73707078,2624.2,2624.1,0.0383884]
[1727269888293,10.34858047,2624.2,2624.1,0.0383884]
[1727269889033,9.95125193,2624.2,2624.1,0.0383884]
[1727269889208,12.73620225,2624.2,2624.1,0.0383884]
[1727269890329,14.26404048,2624.2,2624.1,0.0383884]
[1727269890531,11.87646524,2624.2,2624.1,0.0383884]
[1727269895149,8.10910047,2624.2,2624.1,0.0383884]
[1727269895632,7.71172539,2624.2,2624.1,0.0383884]
[1727269897042,6.91892539,2624.2,2624.1,0.0383884]
[1727269897242,3.91892539,2624.2,2624.1,0.0383884]
[1727269905770,3.97145502,2624.2,2624.1,0.0383884]
[1727269906103,4.83077452,2624.2,2624.1,0.0383884]
[1727269909695,5.64417452,2624.2,2624.1,0.0383884]
[1727269909889,8.64417452,2624.2,2624.1,0.0383884]
[1727269910197,10.57770335,2624.2,2624.1,0.0383884]
[1727269910345,10.29736085,2624.2,2624.1,0.0383884]
[1727269911392,11.8866139,2624.2,2624.1,0.0383884]
[1727269911883,10.29736085,2624.2,2624.1,0.0383884]
[1727269912092,11.88664226,2624.2,2624.1,0.0383884]
[1727269912446,10.57840086,2624.2,2624.1,0.0383884]
[1727269918493,10.57840086,2624.2,2624.1,0.03681317]
[1727269918996,11.82310274,2624.2,2624.1,0.03681317]
[1727269919489,13.81106718,2624.2,2624.1,0.03681317]
[1727269920656,11.82310274,2624.2,2624.1,0.03681317]
[1727269924404,12.89148503,2624.2,2624.1,0.03681317]
[1727269924710,13.44604263,2624.2,2624.1,0.03681317]
[1727269925104,16.73546301,2624.2,2624.1,0.03681317]
[1727269925269,13.44604263,2624.2,2624.1,0.03681317]
[1727269926108,12.92766034,2624.2,2624.1,0.03681317]
[1727269926878,13.44604263,2624.2,2624.1,0.03681317]
[1727269931117,12.92766034,2624.2,2624.1,0.03681317]
[1727269931420,11.82310274,2624.2,2624.1,0.03681317]
[1727269931571,14.60753361,2624.2,2624.1,0.03681317]
[1727269931766,8.82310274,2624.2,2624.1,0.03681317]
[1727269931964,11.20992761,2624.2,2624.1,0.03681317]
[1727269933216,11.37594432,2624.2,2624.1,0.03681317]
[1727269933523,8.98911945,2624.2,2624.1,0.03681317]
[1727269934072,11.00970274,2624.2,2624.1,0.03681317]
[1727269934322,13.39652761,2624.2,2624.1,0.03681317]
[1727269935953,13.39706133,2624.2,2624.1,0.03681317]
[1727269939410,8.17571945,2624.2,2624.1,0.03681317]
[1727269939762,11.00970274,2624.2,2624.1,0.03681317]
[1727269941260,13.39701887,2624.2,2624.1,0.03681317]
[1727269941909,11.00970274,2624.2,2624.1,0.03681317]
[1727269943604,13.39701887,2624.2,2624.1,0.03681317]
[1727269944307,11.87132313,2624.2,2624.1,0.03681317]
[1727269947415,10.856107,2624.2,2624.1,0.03681317]
[1727269947616,13.64130916,2624.2,2624.1,0.03681317]
[1727269947913,11.37448929,2624.2,2624.1,0.03681317]
[1727269948360,12.90202002,2624.2,2624.1,0.03681317]
[1727269949060,12.38363773,2624.2,2624.1,0.03681317]
[1727269951375,15.67519098,2624.2,2624.1,0.03681317]
[1727269952160,16.74272038,2624.2,2624.1,0.03681317]
[1727269952360,13.45116713,2624.2,2624.1,0.03681317]
[1727269957089,13.45116713,2624.2,2623.3,0.0383884]
[1727269957090,0.7573,2624.0,2623.3,0.0383884]
[1727269957293,3.55,2624.1,2623.3,0.0383884]
[1727269957294,10.95495828,2623.4,2623.3,0.0383884]
[1727269957842,14.23570459,2623.4,2623.3,0.0383884]
[1727269957973,14.23449938,2623.4,2623.3,0.0383884]
[1727269958162,12.30753889,2623.4,2623.3,0.0383884]
[1727269958686,15.09297192,2623.4,2623.3,0.0383884]
[1727269959795,15.09239382,2623.4,2623.3,0.0383884]
[1727269961507,17.9282121,2623.4,2623.3,0.0383884]
[1727269961721,15.09239382,2623.4,2623.3,0.0383884]
[1727269961943,17.9282121,2623.4,2623.3,0.0383884]
[1727269962086,15.14335717,2623.4,2623.3,0.0383884]
[1727269962288,12.30753889,2623.4,2623.3,0.0383884]
[1727269962481,15.09038233,2623.4,2623.3,0.0383884]
[1727269962910,12.30753889,2623.4,2623.3,0.0383884]
[1727269963508,15.09016213,2623.4,2623.3,0.0383884]
[1727269964623,15.14335717,2623.4,2623.3,0.0383884]
[1727269964833,16.21088657,2623.4,2623.3,0.0383884]
[1727269965621,19.49807502,2623.4,2623.3,0.0383884]
[1727269966426,13.82643846,2623.4,2623.3,0.0383884]
[1727269966632,19.49807502,2623.4,2623.3,0.0383884]
[1727269967144,16.21088657,2623.4,2623.3,0.0383884]
[1727269968097,16.21088657,2623.4,2622.5,0.0383884]
[1727269968098,6.813,2622.6,2622.5,0.0383884]
[1727269968325,11.68704636,2622.6,2622.5,0.0383884]
[1727269968518,11.72959284,2622.6,2622.5,0.0383884]
[1727269968720,12.1269255,2622.6,2622.5,0.0383884]
[1727269969151,10.14122705,2622.6,2622.5,0.0383884]
[1727269969332,13.53582935,2622.6,2622.5,0.0383884]
[1727269970645,13.53503593,2622.6,2622.5,0.0383884]
[1727269970849,13.5350727,2622.6,2622.5,0.0383884]
[1727269971987,13.5350727,2622.6,2621.7,0.0383884]
[1727269971988,0.8183,2622.5,2621.7,0.0383884]
[1727269972178,9.64998828,2621.8,2621.7,0.0383884]
[1727269972340,11.78706451,2621.8,2621.7,0.0383884]
[1727269972657,6.90569302,2621.8,2621.7,0.0383884]
[1727269972813,3.95822265,2621.8,2621.7,0.8450884]
[1727269973011,3.90569302,2621.8,2621.7,0.8450884]
[1727269973457,3.95822265,2621.8,2621.7,0.8450884]
[1727269973756,6.79404093,2621.8,2621.7,0.8450884]
[1727269973939,3.95822265,2621.8,2621.7,0.8450884]
[1727269976262,6.79404093,2621.8,2621.7,0.0383884]
[1727269976635,9.79404093,2621.8,2621.7,0.0383884]
[1727269976841,9.7415113,2621.8,2621.7,0.0383884]
[1727269979742,10.13898265,2621.8,2621.7,0.0383884]
[1727269980418,7.30316437,2621.8,2621.7,0.0383884]
[1727269980578,7.355694,2621.8,2621.7,0.0383884]
[1727269981631,7.355694,2621.8,2621.5,0.79045439]
[1727269981632,3.81446,2621.6,2621.5,0.79045439]
[1727269981968,6.86698963,2621.6,2621.5,0.79045439]
[1727269982139,3.89567281,2621.6,2621.5,0.79045439]
[1727269991558,3.81482,2621.4,2621.0,0.0261968]
[1727269991788,3.68802937,2621.6,2621.0,0.0261968]
[1727269991789,3.81519,2621.1,2621.0,0.0261968]
[1727269992049,3.88855183,2621.1,2621.0,0.0261968]
[1727269994107,3.88855183,2621.1,2621.0,0.8251968]
[1727269995866,3.88855183,2621.1,2620.1,6.65234828]
[1727269995867,0.0118032,2621.0,2620.1,0.799]
[1727269996072,7.63231,2620.5,2620.1,0.799]
[1727269996316,3.81614,2620.5,2620.1,0.799]
[1727269996470,0.06790551,2620.4,2620.2,0.7804]
[1727269998820,3.81592,2620.6,2620.2,0.75608804]
[1727269998973,0.0677903,2620.5,2620.2,0.75608804]
[1727269999178,0.0677903,2620.5,2620.3,0.74085363]
[1727269999382,0.0677903,2620.5,2620.3,3.57667191]
[1727269999628,3.81578,2620.7,2620.3,3.57667191]
[1727269999928,0.0676301,2620.4,2620.3,4.63352322]
[1727270000080,3.8272232,2621.0,2620.5,3.81606]
[1727270000276,3.8272232,2621.0,2620.6,0.07631268]
[1727270000482,0.0118032,2621.0,2620.8,2.83581828]
[1727270001081,0.0118032,2621.0,2620.6,6.65164828]
[1727270001427,3.8271532,2621.0,2620.7,1.04675983]
[1727270001886,3.8271532,2621.0,2620.8,0.7924]
[1727270002225,0.0118032,2621.0,2620.8,0.7924]
[1727270002592,0.06792184,2620.9,2620.8,0.7924]
[1727270002938,0.06792184,2620.9,2620.8,1.64148081]
[1727270003925,0.06792184,2620.9,2620.8,4.43889909]
[1727270005086,0.06792184,2620.9,2620.8,1.60308081]
[1727270006026,0.06792184,2620.9,2620.8,0.754]
[1727270007445,3.88340184,2620.9,2620.8,0.754]
[1727270009838,3.81595,2620.6,2620.3,0.7958]
[1727270010605,0.06553701,2620.5,2620.3,0.7958]
[1727270010753,0.06553701,2620.5,2620.3,2.28062483]
[1727270011458,0.06553701,2620.5,2620.4,0.7958]
[1727270011818,7.6318,2620.7,2620.4,0.7958]
[1727270012125,3.8814952,2620.6,2620.4,0.7958]
[1727270012345,3.81606,2620.5,2620.4,0.7958]
[1727270012663,0.06554864,2620.5,2620.4,0.7958]
[1727270012812,3.88160864,2620.5,2620.4,0.7958]
[1727270015526,0.06554864,2620.5,2620.4,0.7958]
[1727270015961,3.81593,2620.6,2620.4,0.7958]
[1727270016166,0.06554864,2620.5,2620.4,0.7958]
[1727270016951,3.81578,2620.7,2620.4,0.7958]
[1727270017273,3.81599,2620.6,2620.4,0.7958]
[1727270017429,3.88143213,2620.6,2620.4,0.7958]
[1727270017948,0.06544213,2620.6,2620.4,0.7958]
[1727270018354,3.88139213,2620.6,2620.4,0.7958]
[1727270019836,0.06544213,2620.6,2620.4,3.63161828]
[1727270020052,0.06544213,2620.6,2620.4,4.30905785]
[1727270020570,0.06544213,2620.6,2620.4,8.12520785]
[1727270020932,3.81574,2620.8,2620.4,8.12520785]
[1727270021134,0.05495973,2620.5,2620.4,8.12520785]
[1727270021333,3.81574,2620.8,2620.4,4.30905785]
[1727270021556,3.81574,2620.8,2620.5,0.81253779]
[1727270022837,6.57586001,2621.2,2620.7,0.8011]
[1727270023034,3.81526,2621.1,2620.8,2.83581828]
[1727270023444,1.99040001,2621.5,2621.0,3.63691828]
[1727270023445,3.81469,2621.5,2621.0,3.63691828]
[1727270023637,3.81469,2621.5,2621.4,3.66111828]
[1727270023885,3.81469,2621.5,2621.4,0.8253]
[1727270024233,3.86596058,2621.5,2621.4,0.8253]
[1727270039580,0.05127058,2621.5,2621.4,0.8253]
[1727270040104,3.86587058,2621.5,2621.4,0.8253]
[1727270040306,3.86587058,2621.5,2621.2,3.66791828]
[1727270040667,3.86587058,2621.5,2621.2,0.8321]
[1727270041662,3.81535,2621.0,2620.7,7.4]
[1727270041873,4.64475,2621.0,2620.6,0.7973]
[1727270042074,3.8157,2620.8,2620.6,0.7973]
[1727270042471,3.8657433,2620.7,2620.6,0.7973]
[1727270043126,3.8657433,2620.7,2620.2,0.7754]
[1727270043326,3.81604,2620.6,2620.2,0.7754]
[1727270043487,0.8294,2621.0,2620.3,2.83581828]
[1727270043787,0.8294,2621.0,2620.2,1.97965088]
[1727270043788,0.8294,2621.0,2620.2,5.84075678]
[1727270043789,0.04976269,2620.5,2620.2,5.84075678]
[1727270043991,3.8156,2620.9,2620.2,5.84075678]
[1727270043992,3.81579,2620.7,2620.5,2.83581828]
[1727270044174,0.04979089,2620.6,2620.5,2.83581828]
[1727270046786,0.04979089,2620.6,2620.3,2.83581828]
[1727270049922,0.04979089,2620.6,2620.5,2.83581828]
[1727270050132,0.04979089,2620.6,2620.2,0.8200259]
[1727270050133,3.81609,2620.5,2620.3,2.83581828]
[1727270050330,3.81607,2620.5,2620.3,2.83581828]
[1727270050643,0.0495962,2620.4,2620.3,2.83581828]
[1727270051222,3.8658062,2620.4,2620.3,2.83581828]
[1727270052406,0.0495962,2620.4,2620.3,2.83581828]
[1727270052636,0.7706,2620.6,2620.3,2.83581828]
[1727270052637,3.81592,2620.6,2620.3,2.83581828]
[1727270052797,3.81592,2620.6,2620.5,2.83581828]
[1727270053394,3.81586,2620.7,2620.5,2.83581828]
[1727270054150,7.63173,2620.7,2620.5,2.83581828]
[1727270054631,3.81586,2620.7,2620.5,2.83581828]
[1727270054936,0.04825775,2620.6,2620.5,2.83581828]
[1727270055505,3.81555,2620.9,2620.5,2.83581828]
[1727270055734,3.81533,2621.0,2620.8,2.83581828]
[1727270055936,3.81533,2621.0,2620.8,2.84210708]
[1727270058051,3.81536,2621.0,2620.8,2.84210708]
[1727270058554,0.04834667,2620.9,2620.8,2.84210708]
[1727270058861,3.86382667,2620.9,2620.8,0.0062888]
[1727270059660,4.65912667,2620.9,2620.8,0.0062888]
[1727270065436,5.34709294,2620.9,2620.8,0.0062888]
[1727270069247,5.74348787,2620.9,2620.8,0.0062888]
[1727270072760,4.2602216,2620.9,2620.8,0.0062888]
[1727270076123,3.86382667,2620.9,2620.8,0.0062888]
[1727270080307,3.86382667,2620.9,2620.8,1.31699509]
[1727270085903,3.86382667,2620.9,2620.8,0.0062888]
[1727270086156,5.85317207,2620.9,2620.8,0.0062888]
[1727270086342,5.9057017,2620.9,2620.8,0.0062888]
[1727270086550,6.74176886,2620.9,2620.8,0.0062888]
[1727270086743,4.7488563,2620.9,2620.8,0.0062888]
[1727270086949,8.1474358,2620.9,2620.8,0.0062888]
[1727270087144,10.48212065,2620.9,2620.8,0.0062888]
[1727270087454,8.09490617,2620.9,2620.8,0.0062888]
[1727270094476,10.48680212,2620.9,2620.8,0.0062888]
[1727270094775,8.09490617,2620.9,2620.8,0.0062888]